fUST/lending_fUST_20250811
["ID","MTS","AMOUNT","RATE_DAILY","PERIOD"]
[378475314,1754879446024,-189.04104739,0.00020234,2]
[378475316,1754879446034,-546.44,0.00020234,2]
[378475319,1754879446044,-460.0,0.00020234,2]
[378475321,1754879446054,-438.52310427,0.00020234,2]
[378475323,1754879446063,-464.75302397,0.00020234,2]
[378475325,1754879446072,-469.29080366,0.00020234,2]
[378475327,1754879446081,-460.0,0.00020234,2]
[378475329,1754879446090,-460.0,0.00020234,2]
[378475331,1754879446100,-460.0,0.00020234,2]
[378475333,1754879446109,-1068.33,0.00020234,2]
[378475335,1754879446119,-463.85093154,0.00020234,2]
[378475336,1754879446129,-460.0,0.00020234,2]
[378475339,1754879446142,-390.15431073,0.00020234,2]
[378475341,1754879446151,-460.0,0.00020234,2]
[378475342,1754879446161,-460.0,0.00020234,2]
[378475345,1754879446171,-460.0,0.00020234,2]
[378475346,1754879446181,-460.0,0.00020235,2]
[378475348,1754879446190,-1083.78,0.00020235,2]
[378475350,1754879446199,-461.85988641,0.00020235,2]
[378475352,1754879446209,-460.0,0.00020235,2]
[378475354,1754879446218,-1684.6,0.00020235,2]
[378475356,1754879446228,-157.66832612,0.00020273,2]
[378475358,1754879446238,-500.0,0.00020273,2]
[378475360,1754879446247,-500.0,0.00020273,2]
[378475363,1754879446256,-500.0,0.00020273,2]
[378475365,1754879446266,-500.0,0.00020273,2]
[378475367,1754879446275,-501.3768513,0.00020273,2]
[378475369,1754879446285,-500.0,0.00020273,2]
[378475371,1754879446294,-500.0,0.00020273,2]
[378475373,1754879446304,-458.19997189,0.00020277,2]
[378475375,1754879446313,-728.47359829,0.00020357,2]
[378475377,1754879446322,-460.0,0.00020504,2]
[378475379,1754879446331,-460.0,0.00020504,2]
[378475381,1754879446340,-460.0,0.00020504,2]
[378475383,1754879446350,-661.12,0.00020504,2]
[378475385,1754879446359,-463.28357511,0.00020504,2]
[378475387,1754879446368,-460.0,0.00020504,2]
[378475389,1754879446377,-460.0,0.00020504,2]
[378475390,1754879446389,-460.0,0.00020504,2]
[378475393,1754879446398,-460.0,0.00020504,2]
[378475394,1754879446407,-307.89038485,0.00020505,2]
[378475396,1754879446417,-460.0,0.00020505,2]
[378475399,1754879446427,-155.58738264,0.00020505,2]
[378475401,1754879446437,-460.0,0.00020505,2]
[378475403,1754879446446,-460.0,0.00020505,2]
[378475404,1754879446455,-460.0,0.00020505,2]
[378475406,1754879446464,-326.96107066,0.00020505,2]
[378475408,1754879446474,-460.0,0.00020505,2]
[378475411,1754879446484,-460.0,0.00020505,2]
[378475413,1754879446493,-460.0,0.00020505,2]
[378475415,1754879446502,-462.96702193,0.00020505,2]
[378475416,1754879446511,-460.0,0.00020505,2]
[378475419,1754879446523,-460.0,0.00020505,2]
[378475420,1754879446532,-460.0,0.00020505,2]
[378475422,1754879446541,-460.0,0.00020505,2]
[378475424,1754879446551,-173.85028267,0.00020505,2]
[378475426,1754879446560,-460.0,0.00020505,2]
[378475428,1754879446570,-460.0,0.00020505,2]
[378475430,1754879446579,-460.0,0.00020505,2]
[378475432,1754879446589,-460.0,0.00020505,2]
[378475434,1754879446599,-460.0,0.00020505,2]
[378475436,1754879446609,-462.75036739,0.00020505,2]
[378475438,1754879446619,-480.4,0.00020505,2]
[378475440,1754879446629,-460.0,0.00020505,2]
[378475442,1754879446639,-460.0,0.00020505,2]
[378475444,1754879446649,-460.0,0.00020505,2]
[378475446,1754879446658,-461.94,0.00020505,2]
[378475448,1754879446667,-460.0,0.00020505,2]
[378475450,1754879446677,-460.0,0.00020505,2]
[378475452,1754879446687,-460.0,0.00020505,2]
[378475454,1754879446696,-756.38,0.00020505,2]
[378475456,1754879446705,-1399.25,0.00020505,2]
[378475458,1754879446714,-460.0,0.00020505,2]
[378475461,1754879446724,-460.0,0.00020505,2]
[378475462,1754879446733,-460.0,0.00020505,2]
[378475464,1754879446743,-460.0,0.00020505,2]
[378475466,1754879446754,-460.0,0.00020505,2]
[378475467,1754879446763,-460.0,0.00020505,2]
[378475468,1754879446772,-460.0,0.00020505,2]
[378475469,1754879446781,-460.0,0.00020505,2]
[378475470,1754879446790,-460.0,0.00020505,2]
[378475471,1754879446799,-460.0,0.00020505,2]
[378475472,1754879446808,-1560.09,0.00020505,2]
[378475474,1754879446818,-460.0,0.00020505,2]
[378475476,1754879446828,-460.0,0.00020505,2]
[378475478,1754879446837,-460.0,0.00020505,2]
[378475479,1754879446847,-460.0,0.00020505,2]
[378475480,1754879446856,-552.23,0.00020505,2]
[378475481,1754879446866,-460.0,0.00020505,2]
[378475482,1754879446875,-460.0,0.00020505,2]
[378475483,1754879446886,-460.0,0.00020505,2]
[378475484,1754879446895,-460.0,0.00020505,2]
[378475485,1754879446904,-2297.75,0.00020505,2]
[378475486,1754879446914,-460.0,0.00020505,2]
[378475487,1754879446923,-460.0,0.00020505,2]
[378475488,1754879446933,-553.13,0.00020505,2]
[378475489,1754879446942,-460.0,0.00020505,2]
[378475490,1754879446952,-460.0,0.00020505,2]
[378475491,1754879446961,-460.0,0.00020505,2]
[378475492,1754879446970,-460.0,0.00020505,2]
[378475493,1754879446979,-460.0,0.00020505,2]
[378475494,1754879446988,-460.0,0.00020505,2]
[378475495,1754879446998,-460.0,0.00020505,2]
[378475496,1754879447008,-181.46179835,0.00020505,2]
[378475497,1754879447017,-460.0,0.00020506,2]
[378475498,1754879447027,-460.0,0.00020506,2]
[378475499,1754879447037,-460.0,0.00020506,2]
[378475500,1754879447046,-460.0,0.00020506,2]
[378475501,1754879447056,-464.83439078,0.00020506,2]
[378475502,1754879447065,-466.13324526,0.00020506,2]
[378475503,1754879447074,-460.0,0.00020506,2]
[378475504,1754879447084,-460.0,0.00020506,2]
[378475505,1754879447093,-460.0,0.00020506,2]
[378475506,1754879447103,-460.0,0.00020506,2]
[378475507,1754879447112,-568.91,0.00020506,2]
[378475508,1754879447122,-460.0,0.00020506,2]
[378475509,1754879447131,-460.0,0.00020506,2]
[378475510,1754879447144,-1306.56,0.00020506,2]
[378475511,1754879447154,-460.0,0.00020506,2]
[378475512,1754879447164,-645.62,0.00020506,2]
[378475513,1754879447173,-460.0,0.00020506,2]
[378475514,1754879447182,-460.0,0.00020506,2]
[378475515,1754879447192,-460.0,0.00020506,2]
[378475516,1754879447201,-376.11677768,0.00020506,2]
[378475517,1754879447210,-460.0,0.00020506,2]
[378475518,1754879447219,-460.0,0.00020506,2]
[378475519,1754879447229,-460.0,0.00020506,2]
[378475520,1754879447239,-460.0,0.00020506,2]
[378475521,1754879447248,-1166.95,0.00020506,2]
[378475522,1754879447258,-460.0,0.00020506,2]
[378475523,1754879447267,-460.0,0.00020506,2]
[378475524,1754879447277,-460.0,0.00020506,2]
[378475525,1754879447287,-460.0,0.00020506,2]
[378475526,1754879447296,-460.0,0.00020506,2]
[378475527,1754879447305,-460.0,0.00020506,2]
[378475528,1754879447315,-460.0,0.00020506,2]
[378475529,1754879447324,-460.0,0.00020506,2]
[378475530,1754879447334,-466.36255917,0.00020506,2]
[378475531,1754879447343,-1333.39,0.00020506,2]
[378475532,1754879447352,-460.0,0.00020506,2]
[378475533,1754879447361,-460.0,0.00020507,2]
[378475534,1754879447371,-460.0,0.00020507,2]
[378475535,1754879447380,-460.0,0.00020507,2]
[378475536,1754879447391,-460.0,0.00020507,2]
[378475537,1754879447400,-460.71,0.00020507,2]
[378475538,1754879447410,-460.0,0.00020507,2]
[378475539,1754879447419,-460.0,0.00020507,2]
[378475540,1754879447428,-460.0,0.00020507,2]
[378475541,1754879447437,-460.0,0.00020507,2]
[378475542,1754879447447,-460.0,0.00020507,2]
[378475543,1754879447456,-492.22217763,0.00020507,2]
[378475544,1754879447466,-550.26,0.00020507,2]
[378475545,1754879447475,-460.0,0.00020507,2]
[378475546,1754879447485,-617.1,0.00020507,2]
[378475547,1754879447494,-464.57190293,0.00020507,2]
[378475548,1754879447504,-460.0,0.00020507,2]
[378475549,1754879447513,-1301.66,0.00020507,2]
[378475550,1754879447524,-1008.77,0.00020507,2]
[378475551,1754879447535,-460.0,0.00020507,2]
[378475552,1754879447544,-912.71,0.00020507,2]
[378475553,1754879447554,-526.57544071,0.00020507,2]
[378475554,1754879447563,-460.0,0.00020507,2]
[378475555,1754879447574,-466.6464023,0.00020507,2]
[378475556,1754879447584,-183.68363434,0.00020507,2]
[378475557,1754879447594,-460.0,0.00020507,2]
[378475558,1754879447604,-460.0,0.00020507,2]
[378475559,1754879447614,-514.07092111,0.00020507,2]
[378475560,1754879447624,-460.0,0.00020507,2]
[378475561,1754879447634,-460.0,0.00020507,2]
[378475562,1754879447646,-165.79485269,0.00020508,2]
[378475563,1754879447656,-460.0,0.00020508,2]
[378475564,1754879447666,-183.53028677,0.00020508,2]
[378475565,1754879447675,-460.0,0.00020508,2]
[378475566,1754879447685,-460.0,0.00020508,2]
[378475567,1754879447694,-460.0,0.00020508,2]
[378475568,1754879447703,-487.31,0.00020508,2]
[378475569,1754879447712,-460.0,0.00020508,2]
[378475570,1754879447722,-460.0,0.00020508,2]
[378475571,1754879447732,-460.0,0.00020508,2]
[378475572,1754879447741,-460.0,0.00020508,2]
[378475573,1754879447751,-546.44,0.00020508,2]
[378475574,1754879447760,-460.0,0.00020508,2]
[378475575,1754879447769,-464.06089106,0.00020508,2]
[378475576,1754879447779,-460.0,0.00020508,2]
[378475577,1754879447788,-460.0,0.00020508,2]
[378475578,1754879447797,-1068.33,0.00020508,2]
[378475579,1754879447807,-460.0,0.00020508,2]
[378475580,1754879447818,-460.0,0.00020508,2]
[378475581,1754879447827,-460.0,0.00020508,2]
[378475582,1754879447836,-460.0,0.00020508,2]
[378475583,1754879447846,-460.0,0.00020509,2]
[378475584,1754879447855,-1083.78,0.00020509,2]
[378475585,1754879447864,-460.0,0.00020509,2]
[378475586,1754879447873,-1684.6,0.00020509,2]
[378475587,1754879447882,-728.47359829,0.00020605,2]
[378475588,1754879447894,-160.0,0.00020682,2]
[378475589,1754879447903,-460.0,0.00020778,2]
[378475590,1754879447913,-460.0,0.00020778,2]
[378475591,1754879447922,-460.0,0.00020778,2]
[378475592,1754879447931,-661.12,0.00020778,2]
[378475593,1754879447940,-450.0,0.00020778,2]
[378475594,1754879447950,-460.0,0.00020778,2]
[378475595,1754879447958,-463.75149354,0.00020778,2]
[378475596,1754879447968,-460.0,0.00020779,2]
[378475597,1754879447977,-460.0,0.00020779,2]
[378475598,1754879447986,-460.0,0.00020779,2]
[378475599,1754879447996,-460.0,0.00020779,2]
[378475600,1754879448006,-460.0,0.00020779,2]
[378475601,1754879448015,-460.0,0.00020779,2]
[378475602,1754879448024,-460.0,0.00020779,2]
[378475603,1754879448034,-460.0,0.00020779,2]
[378475604,1754879448044,-460.0,0.00020779,2]
[378475605,1754879448054,-460.0,0.00020779,2]
[378475606,1754879448063,-474.78318931,0.00020779,2]
[378475607,1754879448073,-460.0,0.00020779,2]
[378475608,1754879448082,-471.54487459,0.00020779,2]
[378475609,1754879448092,-480.4,0.00020779,2]
[378475610,1754879448101,-460.0,0.00020779,2]
[378475611,1754879448111,-461.94,0.00020779,2]
[378475612,1754879448120,-439.86362386,0.00020779,2]
[378475613,1754879448129,-460.0,0.00020779,2]
[378475614,1754879448140,-460.0,0.00020779,2]
[378475615,1754879448150,-756.38,0.00020779,2]
[378475616,1754879448159,-1399.25,0.00020779,2]
[378475617,1754879448310,-460.0,0.00020779,2]
[378475618,1754879448321,-460.0,0.00020779,2]
[378475619,1754879448331,-460.0,0.00020779,2]
[378475620,1754879448341,-460.0,0.00020779,2]
[378475621,1754879448351,-460.0,0.00020779,2]
[378475622,1754879448361,-460.0,0.00020779,2]
[378475623,1754879448372,-460.0,0.00020779,2]
[378475624,1754879448383,-460.0,0.00020779,2]
[378475625,1754879448395,-1560.09,0.00020779,2]
[378475626,1754879448406,-460.0,0.00020779,2]
[378475627,1754879448417,-460.0,0.00020779,2]
[378475628,1754879448428,-460.0,0.00020779,2]
[378475629,1754879448438,-552.23,0.00020779,2]
[378475630,1754879448448,-460.0,0.00020779,2]
[378475631,1754879448458,-179.09294013,0.00020779,2]
[378475632,1754879448468,-460.0,0.00020779,2]
[378475633,1754879448477,-2297.75,0.00020779,2]
[378475634,1754879448487,-460.0,0.00020779,2]
[378475635,1754879448497,-460.0,0.00020779,2]
[378475636,1754879448507,-537.2454953,0.00020779,2]
[378475637,1754879448518,-460.0,0.00020779,2]
[378475638,1754879448530,-460.0,0.00020779,2]
[378475639,1754879448540,-460.0,0.00020779,2]
[378475640,1754879448549,-460.0,0.00020779,2]
[378475641,1754879448561,-460.0,0.0002078,2]
[378475642,1754879448571,-460.0,0.0002078,2]
[378475643,1754879448581,-460.0,0.0002078,2]
[378475644,1754879448590,-460.0,0.0002078,2]
[378475645,1754879448602,-460.0,0.0002078,2]
[378475646,1754879448613,-460.0,0.0002078,2]
[378475647,1754879448622,-460.0,0.0002078,2]
[378475648,1754879448632,-568.91,0.0002078,2]
[378475649,1754879448643,-460.0,0.0002078,2]
[378475650,1754879448653,-460.0,0.0002078,2]
[378475651,1754879448663,-1306.56,0.0002078,2]
[378475652,1754879448673,-460.0,0.0002078,2]
[378475653,1754879448683,-645.62,0.0002078,2]
[378475654,1754879448693,-460.0,0.0002078,2]
[378475655,1754879448703,-460.0,0.0002078,2]
[378475656,1754879448712,-460.0,0.0002078,2]
[378475657,1754879448722,-460.0,0.0002078,2]
[378475658,1754879448731,-460.0,0.0002078,2]
[378475659,1754879448742,-1166.95,0.0002078,2]
[378475660,1754879448753,-460.0,0.0002078,2]
[378475661,1754879448762,-460.0,0.0002078,2]
[378475662,1754879448772,-460.0,0.0002078,2]
[378475663,1754879448781,-460.0,0.0002078,2]
[378475664,1754879448791,-460.0,0.0002078,2]
[378475665,1754879448801,-460.0,0.0002078,2]
[378475666,1754879448812,-460.0,0.0002078,2]
[378475667,1754879448821,-460.0,0.0002078,2]
[378475668,1754879448831,-1333.39,0.0002078,2]
[378475669,1754879448841,-460.0,0.0002078,2]
[378475670,1754879448852,-460.0,0.00020781,2]
[378475671,1754879448862,-271.67873486,0.00020781,2]
[378475672,1754879448873,-460.71,0.00020781,2]
[378475673,1754879448883,-334.27397086,0.00020781,2]
[378475674,1754879448893,-460.0,0.00020781,2]
[378475675,1754879448903,-460.0,0.00020781,2]
[378475676,1754879448914,-460.0,0.00020781,2]
[378475677,1754879448923,-460.0,0.00020781,2]
[378475678,1754879448933,-550.26,0.00020781,2]
[378475679,1754879448942,-460.0,0.00020781,2]
[378475680,1754879448951,-617.1,0.00020781,2]
[378475681,1754879448960,-460.0,0.00020781,2]
[378475682,1754879448969,-1301.66,0.00020781,2]
[378475683,1754879448979,-1008.77,0.00020781,2]
[378475684,1754879448988,-460.0,0.00020781,2]
[378475685,1754879448998,-912.71,0.00020781,2]
[378475686,1754879449007,-460.0,0.00020781,2]
[378475687,1754879449016,-460.0,0.00020781,2]
[378475688,1754879449026,-460.0,0.00020781,2]
[378475689,1754879449036,-454.69237599,0.00020781,2]
[378475690,1754879449046,-460.0,0.00020781,2]
[378475691,1754879449056,-460.0,0.00020782,2]
[378475692,1754879449065,-460.0,0.00020782,2]
[378475693,1754879449075,-487.31,0.00020782,2]
[378475694,1754879449084,-460.0,0.00020782,2]
[378475695,1754879449094,-460.0,0.00020782,2]
[378475696,1754879449103,-460.0,0.00020782,2]
[378475697,1754879449112,-546.44,0.00020782,2]
[378475699,1754879449122,-460.0,0.00020782,2]
[378475701,1754879449131,-460.0,0.00020782,2]
[378475702,1754879449141,-1068.33,0.00020782,2]
[378475703,1754879449150,-460.0,0.00020782,2]
[378475705,1754879449159,-460.0,0.00020782,2]
[378475707,1754879449168,-312.58425432,0.00020782,2]
[378475709,1754879449178,-460.0,0.00020783,2]
[378475711,1754879449188,-1083.78,0.00020783,2]
[378475712,1754879449198,-534.30869481,0.00020783,2]
[378475713,1754879449207,-1684.6,0.00020783,2]
[378475714,1754879449216,-280.65641991,0.000208,2]
[378475715,1754879449225,-500.70842022,0.000208,2]
[378475717,1754879449235,-500.0,0.000208,2]
[378475719,1754879449244,-1000.0,0.00020821,2]
[378475721,1754879449254,-1011.77739619,0.00020821,2]
[378475722,1754879449264,-1000.0,0.00020821,2]
[378475723,1754879449274,-728.47359829,0.00020854,2]
[378475724,1754879449284,-200.0,0.00020953,15]
[378475725,1754879449294,-300.0,0.00020953,15]
[378475726,1754879449304,-500.0,0.00020973,2]
[378475728,1754879449314,-500.0,0.00020973,2]
[378475730,1754879449323,-151.0,0.00021,4]
[378475732,1754879449332,-5078.0,0.00021,15]
[378475733,1754879449342,-1077.64062065,0.00021,2]
[378475735,1754879449351,-202.87297087,0.00021,2]
[378475736,1754879449361,-460.0,0.00021052,2]
[378475737,1754879449371,-460.0,0.00021052,2]
[378475738,1754879449379,-460.0,0.00021052,2]
[378475739,1754879449390,-661.12,0.00021052,2]
[378475740,1754879449400,-460.0,0.00021052,2]
[378475741,1754879449409,-460.0,0.00021053,2]
[378475742,1754879449419,-460.0,0.00021053,2]
[378475743,1754879449430,-460.0,0.00021053,2]
[378475744,1754879449439,-460.0,0.00021053,2]
[378475745,1754879449448,-223.98303842,0.00021053,2]
[378475746,1754879449458,-460.0,0.00021053,2]
[378475747,1754879449467,-460.0,0.00021053,2]
[378475748,1754879449476,-460.0,0.00021053,2]
[378475749,1754879449486,-460.0,0.00021053,2]
[378475750,1754879449496,-460.0,0.00021053,2]
[378475751,1754879449507,-460.0,0.00021053,2]
[378475752,1754879449517,-480.4,0.00021053,2]
[378475753,1754879449531,-460.0,0.00021053,2]
[378475754,1754879449540,-461.94,0.00021053,2]
[378475755,1754879449549,-460.0,0.00021053,2]
[378475756,1754879449559,-460.0,0.00021053,2]
[378475757,1754879449569,-756.38,0.00021053,2]
[378475758,1754879449579,-1399.25,0.00021053,2]
[378475759,1754879449588,-460.0,0.00021053,2]
[378475760,1754879449599,-460.0,0.00021053,2]
[378475761,1754879449608,-460.0,0.00021053,2]
[378475762,1754879449618,-460.0,0.00021053,2]
[378475763,1754879449627,-460.0,0.00021053,2]
[378475764,1754879449636,-460.0,0.00021053,2]
[378475765,1754879449646,-476.83307238,0.00021053,2]
[378475766,1754879449665,-460.0,0.00021053,2]
[378475767,1754879449674,-1560.09,0.00021053,2]
[378475768,1754879449683,-460.0,0.00021053,2]
[378475769,1754879449693,-460.0,0.00021053,2]
[378475770,1754879449702,-460.0,0.00021053,2]
[378475771,1754879449711,-552.23,0.00021053,2]
[378475772,1754879449720,-460.0,0.00021053,2]
[378475773,1754879449729,-482.87,0.00021053,2]
[378475774,1754879449738,-460.0,0.00021053,2]
[378475775,1754879449748,-1944.3883508,0.00021053,2]
[378475776,1754879449966,-460.0,0.00019956,2]
[378475777,1754879449975,-460.0,0.00020233,2]
[378475778,1754879449985,-460.0,0.00020507,2]
[378475779,1754879449994,-479.84616246,0.00020781,2]
[378475780,1754879450002,-353.3616492,0.00021053,2]
[378475781,1754879450011,-460.0,0.00021053,2]
[378475782,1754879450021,-460.0,0.00021053,2]
[378475783,1754879450030,-460.0,0.00021053,2]
[378475784,1754879450040,-514.62,0.00021053,2]
[378475785,1754879450049,-140.44997397,0.00021053,2]
[378475786,1754879450097,3794.24366924,0.000199,2]
[378475787,1754879450413,-302.0,0.00019956,2]
[378475788,1754879450435,-158.0,0.00019956,2]
[378475789,1754879450445,-460.0,0.00019957,2]
[378475790,1754879450455,-460.0,0.00019957,2]
[378475791,1754879450465,-460.0,0.00019958,2]
[378475792,1754879450474,-460.0,0.00019958,2]
[378475793,1754879450484,-460.0,0.00019959,2]
[378475794,1754879450493,-462.57768948,0.0002023,2]
[378475795,1754879450502,-461.89986859,0.0002023,2]
[378475796,1754879450512,-180.69,0.00020231,2]
[378475797,1754879450523,-471.51851259,0.00020233,2]
[378475798,1754879450533,-319.55002603,0.00021053,2]
[378475799,1754879450543,-460.0,0.00021054,2]
[378475800,1754879450552,-460.0,0.00021054,2]
[378475801,1754879450561,-460.0,0.00021054,2]
[378475802,1754879450573,-568.91,0.00021054,2]
[378475803,1754879450582,-460.0,0.00021054,2]
[378475804,1754879450591,-460.0,0.00021054,2]
[378475805,1754879450601,-460.0,0.00021054,2]
[378475806,1754879450610,-645.62,0.00021054,2]
[378475807,1754879450619,-460.0,0.00021054,2]
[378475808,1754879450628,-460.0,0.00021054,2]
[378475809,1754879450636,-460.0,0.00021054,2]
[378475810,1754879450647,-460.0,0.00021054,2]
[378475811,1754879450656,-1166.95,0.00021054,2]
[378475812,1754879450664,-530.65,0.00021054,2]
[378475813,1754879450673,-460.0,0.00021054,2]
[378475814,1754879450682,-173.63290331,0.00021054,2]
[378475815,1754879450918,-460.0,0.00019956,2]
[378475816,1754879450928,-479.4,0.00019957,2]
[378475817,1754879450938,-179.08674524,0.00019959,2]
[378475818,1754879450947,-460.0,0.00020231,2]
[378475819,1754879450957,-460.0,0.00020232,2]
[378475820,1754879450966,-460.0,0.00020232,2]
[378475821,1754879450975,-471.34429563,0.00020506,2]
[378475822,1754879450985,-286.36709669,0.00021054,2]
[378475823,1754879450995,-460.0,0.00021054,2]
[378475824,1754879451004,-562.29578521,0.00021054,2]
[378475825,1754879451014,-460.0,0.00021054,2]
[378475826,1754879451023,-1333.39,0.00021054,2]
[378475827,1754879451032,-407.38060029,0.00021054,2]
[378475828,1754879451042,-460.0,0.00021055,2]
[378475829,1754879451051,-460.71,0.00021055,2]
[378475830,1754879451060,-460.0,0.00021055,2]
[378475831,1754879451069,-464.92999108,0.00021055,2]
[378475832,1754879451079,-550.26,0.00021055,2]
[378475833,1754879451088,-460.0,0.00021055,2]
[378475834,1754879451097,-617.1,0.00021055,2]
[378475835,1754879451107,-460.0,0.00021055,2]
[378475836,1754879451117,-1301.66,0.00021055,2]
[378475837,1754879451126,-1008.77,0.00021055,2]
[378475838,1754879451136,-509.51,0.00021055,2]
[378475839,1754879451158,-912.71,0.00021055,2]
[378475840,1754879451170,-460.0,0.00021055,2]
[378475841,1754879451179,-460.0,0.00021055,2]
[378475842,1754879451189,-460.0,0.00021055,2]
[378475843,1754879451198,-460.0,0.00021055,2]
[378475844,1754879451207,-460.0,0.00021056,2]
[378475845,1754879451216,-460.0,0.00021056,2]
[378475846,1754879451225,-487.31,0.00021056,2]
[378475847,1754879451234,-460.0,0.00021056,2]
[378475848,1754879451243,-460.0,0.00021056,2]
[378475849,1754879451253,-546.44,0.00021056,2]
[378475850,1754879451262,-460.0,0.00021056,2]
[378475851,1754879451272,-1068.33,0.00021056,2]
[378475852,1754879451281,-460.0,0.00021056,2]
[378475853,1754879451449,-1083.78,0.00021057,2]
[378475854,1754879451464,-1684.6,0.00021057,2]
[378475855,1754879451475,-160.0,0.00021124,2]
[378475856,1754879451484,-160.0,0.00021124,2]
[378475857,1754879451494,-160.0,0.00021124,2]
[378475858,1754879451504,-160.0,0.00021125,2]
[378475859,1754879451514,-160.0,0.00021125,2]
[378475860,1754879451528,-160.0,0.00021125,2]
[378475861,1754879451538,-160.0,0.00021125,2]
[378475862,1754879451547,-216.68257536,0.00021125,2]
[378475863,1754879451556,-231.9940742,0.00021125,2]
[378475864,1754879451566,-160.0,0.00021125,2]
[378475865,1754879451575,-843.18994796,0.00021125,2]
[378475866,1754879451587,-215.4905783,0.00021125,2]
[378475867,1754879451597,-461.69158338,0.00021125,2]
[378475868,1754879451607,-312.16666667,0.00021125,2]
[378475869,1754879451617,-527.9539256,0.00021125,2]
[378475870,1754879451626,-12671.21867243,0.00021125,2]
[378475871,1754879451635,-160.0,0.00021126,2]
[378475872,1754879451646,-160.0,0.00021126,2]
[378475873,1754879451655,-260.0,0.0002123,2]
[378475874,1754879451665,-500.0,0.00021305,2]
[378475875,1754879451674,-859.94,0.0002132,3]
[378475876,1754879451683,-573.3,0.0002132,3]
[378475877,1754879451693,-339.4,0.0002132,3]
[378475878,1754879451702,-537.6,0.0002132,3]
[378475879,1754879451711,-460.0,0.00021326,2]
[378475880,1754879451720,-460.0,0.00021326,2]
[378475881,1754879451730,-460.0,0.00021326,2]
[378475882,1754879451740,-661.12,0.00021326,2]
[378475883,1754879451749,-460.0,0.00021326,2]
[378475884,1754879451758,-460.0,0.00021327,2]
[378475885,1754879451767,-380.08284335,0.00021327,2]
[378475886,1754879451780,-460.0,0.00021327,2]
[378475887,1754879451789,-460.0,0.00021327,2]
[378475888,1754879451799,-460.0,0.00021327,2]
[378475889,1754879451808,-460.0,0.00021327,2]
[378475890,1754879451818,-460.0,0.00021327,2]
[378475891,1754879451828,-460.0,0.00021327,2]
[378475892,1754879451837,-460.0,0.00021327,2]
[378475893,1754879451847,-480.4,0.00021327,2]
[378475894,1754879451856,-460.0,0.00021327,2]
[378475895,1754879451866,-461.94,0.00021327,2]
[378475896,1754879451876,-460.0,0.00021327,2]
[378475897,1754879451885,-756.38,0.00021327,2]
[378475898,1754879451896,-1399.25,0.00021327,2]
[378475899,1754879451905,-460.0,0.00021327,2]
[378475900,1754879451915,-460.0,0.00021327,2]
[378475901,1754879451925,-460.0,0.00021327,2]
[378475902,1754879451934,-460.0,0.00021327,2]
[378475903,1754879451944,-460.0,0.00021327,2]
[378475904,1754879451953,-1560.09,0.00021327,2]
[378475905,1754879451963,-460.0,0.00021327,2]